bitfinex-derivatives/quotes_SOLF0:USTF0_20250331
["timestamp","ask_amount","ask_price","bid_price","bid_amount"]
[1743407819753,7.9643,125.57,125.56,0.05610249]
[1743407821758,44.92549448,125.58,125.49,374.07744387]
[1743407821959,14.38549448,125.53,125.49,87.45744387]
[1743407822157,7.9685,125.51,125.49,87.45744387]
[1743407822955,8.02070046,125.51,125.49,87.51162911]
[1743407823156,0.05220046,125.51,125.49,87.51162911]
[1743407824162,0.05220046,125.51,125.49,0.05418524]
[1743407824656,7.9687,125.5,125.49,0.05418524]
[1743407827254,14.43769494,125.51,125.44,58.53098868]
[1743407827453,14.38549448,125.49,125.44,19.85888868]
[1743407828259,7.9712,125.47,125.44,19.85888868]
[1743407828466,0.05834665,125.48,125.44,27.83138868]
[1743407828855,7.9707,125.47,125.44,27.83138868]
[1743407829056,0.05834665,125.48,125.44,19.85888868]
[1743407829458,7.9715,125.46,125.44,19.85888868]
[1743407830168,7.9715,125.46,125.43,7.9729]
[1743407830367,7.9715,125.46,125.44,7.9725]
[1743407830762,8.02887957,125.46,125.44,7.9725]
[1743407835873,0.05737957,125.46,125.42,30.64]
[1743407836668,0.05737957,125.46,125.44,7.9721]
[1743407839269,0.05737957,125.46,125.42,30.64]
[1743407839670,0.05737957,125.46,125.44,7.9722]
[1743407839871,8.02867957,125.46,125.44,7.9722]
[1743407840471,0.05737957,125.46,125.44,7.9722]
[1743407840770,0.05737957,125.46,125.43,9.22164311]
[1743407841071,0.05737957,125.46,125.45,7.9719]
[1743407841273,0.05737957,125.46,125.45,17.19354311]
[1743407842375,0.05737957,125.46,125.44,7.9721]
[1743407842670,0.05737957,125.46,125.42,9.22164311]
[1743407844173,8.02867957,125.46,125.44,7.972]
[1743407845969,9.22164311,125.45,125.41,9.22164311]
[1743407846272,9.22164311,125.44,125.4,39.64164311]
[1743407846670,0.05408731,125.43,125.41,7.9742]
[1743407846870,0.05408731,125.43,125.4,39.64164311]
[1743407847067,0.05408731,125.43,125.4,9.22164311]
[1743407847371,0.05408731,125.43,125.42,7.9738]
[1743407848870,8.02728731,125.43,125.41,7.9741]
[1743407849067,9.27573042,125.43,125.39,357.99991073]
[1743407849375,7.9755,125.4,125.37,7.9767]
[1743407849574,9.22164311,125.4,125.37,7.9767]
[1743407849764,9.28145647,125.4,125.37,7.9767]
[1743407850375,9.28145647,125.4,125.34,454.67899771]
[1743407850376,9.22164311,125.39,125.34,454.67899771]
[1743407850576,9.22164311,125.39,125.34,485.05899771]
[1743407850876,9.22164311,125.39,125.34,397.60155384]
[1743407851074,17.19764311,125.39,125.36,7.9772]
[1743407851276,9.22164311,125.39,125.35,9.22164311]
[1743407851575,0.05981336,125.4,125.38,9.22164311]
[1743407851777,0.05981336,125.4,125.39,7.9757]
[1743407857576,0.05981336,125.4,125.39,17.19734311]
[1743407859383,0.05981336,125.4,125.39,7.9757]
[1743407859775,0.05981336,125.4,125.38,38.336]
[1743407860078,0.05981336,125.4,125.38,30.36]
[1743407860381,0.05981336,125.4,125.39,7.9757]
[1743407860675,0.05981336,125.4,125.38,30.36]
[1743407861075,8.03491336,125.4,125.38,38.336]
[1743407861275,8.03491336,125.4,125.38,30.36]
[1743407861276,0.05981336,125.4,125.38,30.36]
[1743407861576,9.28145647,125.4,125.36,30.34]
[1743407861778,7.976,125.39,125.37,7.9767]
[1743407861977,9.28145647,125.4,125.37,7.9767]
[1743407862182,9.28145647,125.4,125.36,30.34]
[1743407862381,0.05981336,125.4,125.36,39.56164311]
[1743407862778,0.05981336,125.4,125.38,7.9759]
[1743407862979,0.05981336,125.4,125.36,39.56164311]
[1743407863382,0.05981336,125.4,125.39,7.9757]
[1743407863885,9.22164311,125.46,125.4,9.22164311]
[1743407864380,17.19324311,125.46,125.42,7.9732]
[1743407864578,9.22164311,125.46,125.42,30.34]
[1743407864973,0.05982796,125.45,125.43,0.05276306]
[1743407865783,0.05982796,125.45,125.44,7.9725]
[1743407870280,0.05982796,125.45,125.43,0.05276306]
[1743407870481,0.05982796,125.45,125.43,8.02556306]
[1743407870684,0.05982796,125.45,125.43,0.05276306]
[1743407871085,0.05982796,125.45,125.44,7.9725]
[1743407873481,8.03202796,125.45,125.43,8.02556306]
[1743407873787,17.25367107,125.45,125.43,0.05276306]
[1743407874183,17.19414311,125.44,125.43,0.05276306]
[1743407877490,17.25377107,125.45,125.43,8.02586306]
[1743407877684,17.25377107,125.45,125.43,0.05276306]
[1743407878889,0.05982796,125.45,125.43,0.05276306]
[1743407879490,0.05982796,125.45,125.44,7.9725]
[1743407879888,0.05982796,125.45,125.44,17.19414311]
[1743407880391,9.22164311,125.53,125.44,17.20164311]
[1743407880584,14.47954311,125.54,125.49,9.22164311]
[1743407880784,9.22164311,125.56,125.51,9.22164311]
[1743407881194,7.9652,125.56,125.52,9.22164311]
[1743407881383,17.18684311,125.56,125.53,7.9667]
[1743407881587,0.05803594,125.55,125.52,9.2819561]
[1743407882082,0.05803594,125.55,125.54,9.22164311]
[1743407883091,0.05803594,125.55,125.54,17.18784311]
[1743407883693,0.05803594,125.55,125.52,39.7419561]
[1743407883894,0.05803594,125.55,125.52,30.52031299]
[1743407884393,17.24557905,125.55,125.52,30.52031299]
[1743407884693,0.05803594,125.55,125.52,30.52031299]
[1743407884889,9.27967905,125.55,125.52,30.52031299]
[1743407885093,9.27967905,125.55,125.52,0.06031299]
[1743407885490,7.9665,125.54,125.52,0.06031299]
[1743407885691,0.05803594,125.55,125.52,0.06031299]
[1743407886090,7.9668,125.53,125.52,0.06031299]
[1743407886589,0.05803594,125.55,125.52,0.06031299]
[1743407886995,8.02393594,125.55,125.52,8.02751299]
[1743407887893,0.05803594,125.55,125.52,0.06031299]
[1743407888784,0.05803594,125.55,125.54,7.9662]
[1743407888989,0.05803594,125.55,125.54,39.1862]
[1743407890393,0.05803594,125.55,125.54,31.22]
[1743407891196,0.05803594,125.55,125.54,39.1862]
[1743407891991,0.05803594,125.55,125.52,0.06031299]
[1743407893701,0.05803594,125.55,125.54,7.9662]
[1743407893999,0.05803594,125.55,125.54,39.0662]
[1743407897499,0.05803594,125.55,125.54,31.1]
[1743407898105,0.05803594,125.55,125.54,39.0662]
[1743407901808,0.05803594,125.55,125.54,7.9662]
[1743407905818,0.05803594,125.55,125.54,17.16898472]
[1743407907620,0.05803594,125.55,125.54,7.9662]
[1743407908619,30.29424433,125.7,125.6,7.9621]
[1743407908820,2.972,125.65,125.58,45.70124433]
[1743407909026,2.972,125.65,125.59,31.34]
[1743407909522,3.0075,125.66,125.6,14.38124433]
[1743407909723,14.38124433,125.7,125.62,14.43632426]
[1743407909918,14.38124433,125.7,125.62,45.83632426]
[1743407910117,0.05367914,125.67,125.65,0.05646171]
[1743407910321,0.05367914,125.67,125.65,8.01516171]
[1743407910725,8.01187914,125.67,125.65,0.05646171]
[1743407911030,8.01187914,125.67,125.65,8.01566171]
[1743407911231,8.01187914,125.67,125.65,0.05646171]
[1743407912431,7.9586,125.66,125.65,0.05646171]
[1743407912730,14.38124433,125.66,125.59,31.5]
[1743407912923,7.961,125.63,125.59,39.4627]
[1743407913827,0.05690909,125.62,125.6,0.05676409]
[1743407915424,7.9617,125.61,125.6,0.05676409]
[1743407918832,8.01840909,125.62,125.6,0.05676409]
[1743407919434,7.9617,125.61,125.6,0.05676409]
[1743407933244,0.05690909,125.62,125.6,9.25762934]
[1743407933536,0.05690909,125.62,125.6,0.05676409]
[1743407934243,0.05690909,125.62,125.6,8.01906409]
[1743407934545,0.05690909,125.62,125.6,0.05676409]
[1743407934744,0.05690909,125.62,125.6,8.01906409]
[1743407936648,0.05690909,125.62,125.61,7.9617]
[1743407937542,0.05690909,125.62,125.61,17.16256525]
[1743407938346,9.20086525,125.68,125.66,7.9583]
[1743407939244,12.20056525,125.69,125.66,7.9583]
[1743407939656,12.2592025,125.69,125.67,7.9577]
[1743407939839,3.05833725,125.69,125.67,7.9577]
[1743407940449,0.05863725,125.69,125.66,9.25815852]
[1743407941050,0.05863725,125.69,125.67,7.9574]
[1743407941350,0.05863725,125.69,125.68,9.20086525]
[1743407941543,0.05863725,125.69,125.68,17.15816525]
[1743407942252,0.05863725,125.69,125.68,48.95816525]
[1743407943746,0.05863725,125.69,125.68,39.7573]
[1743407944055,0.05863725,125.69,125.68,31.8]
[1743407950256,0.05863725,125.69,125.68,39.7573]
[1743407955749,0.05863725,125.69,125.68,54.10775048]
[1743407957463,7.9526,125.76,125.72,7.9546]
[1743407957857,7.952,125.77,125.73,7.954]
[1743407958058,45.79045048,125.79,125.73,7.954]
[1743407958357,45.79045048,125.79,125.71,31.46]
[1743407958560,7.9523,125.76,125.75,0.05254718]
[1743407960462,7.9546,125.73,125.71,31.46]
[1743407960660,14.35045048,125.77,125.71,31.46]
[1743407961165,7.9538,125.74,125.71,31.46]
[1743407961560,14.35045048,125.77,125.71,39.4154]
[1743407961758,0.05697316,125.74,125.71,39.47658451]
[1743407962162,8.01077316,125.74,125.71,31.52118451]
[1743407963962,7.9542,125.73,125.71,31.52118451]
[1743407964557,8.01087316,125.74,125.71,31.52118451]
[1743407966765,7.9542,125.73,125.71,31.52118451]
[1743407967867,8.01077316,125.74,125.71,31.52118451]
[1743407969459,0.05697316,125.74,125.71,39.47618451]
[1743407969666,0.05697316,125.74,125.71,31.52118451]
[1743407969958,0.05697316,125.74,125.72,9.18198634]
[1743407970166,0.05697316,125.74,125.73,9.18198634]
[1743407970366,0.05697316,125.74,125.73,17.13608634]
[1743407972472,9.18198634,125.81,125.77,7.9512]
[1743407972770,9.18198634,125.81,125.76,9.18198634]
[1743407972967,17.13058634,125.82,125.78,7.9505]
[1743407973165,9.18198634,125.82,125.77,9.18198634]
[1743407973372,22.98818634,125.83,125.78,9.18198634]
[1743407973570,0.05763864,125.81,125.79,7.9499]
[1743407973771,0.05763864,125.81,125.78,40.37633544]
[1743407974268,0.05763864,125.81,125.79,7.9501]
[1743407974670,0.05763864,125.81,125.78,48.32703544]
[1743407974880,0.05763864,125.81,125.78,31.1943491]
[1743407976778,8.00673864,125.81,125.78,31.1943491]
[1743407977075,9.18198634,125.8,125.78,0.0543491]
[1743407977475,17.13228634,125.79,125.78,0.0543491]
[1743407984282,9.18198634,125.79,125.78,0.0543491]
[1743407984983,17.13228634,125.79,125.78,0.0543491]
[1743407985581,9.18198634,125.79,125.78,0.0543491]
[1743407985879,9.18198634,125.8,125.78,0.0543491]
[1743407986084,17.13198634,125.8,125.78,0.0543491]
[1743407986583,0.05763864,125.81,125.78,9.23633544]
[1743407986784,0.05763864,125.81,125.79,9.18198634]
[1743407986984,0.05763864,125.81,125.79,17.13208634]
[1743407987185,0.05763864,125.81,125.79,48.01208634]
[1743407988881,0.05763864,125.81,125.8,17.13168634]
[1743407991989,0.05763864,125.81,125.8,47.97168634]
[1743407992190,0.05763864,125.81,125.8,30.84]
[1743407994782,0.05763864,125.81,125.8,40.02198634]
[1743407996393,0.05763864,125.81,125.8,47.97168634]
[1743407997191,7.9456,125.87,125.83,7.9473]
[1743407997487,7.9456,125.87,125.83,48.04928634]
[1743407997693,17.12698634,125.88,125.83,48.04928634]
[1743407997896,5.8203,125.92,125.84,9.18198634]
[1743407998090,9.18198634,125.9,125.85,9.18198634]
[1743407998291,0.05574967,125.89,125.87,0.05503775]
[1743407998597,9.18198634,125.88,125.87,0.05503775]
[1743407998898,17.12668634,125.88,125.87,0.05503775]
[1743408000393,0.05574967,125.89,125.77,30.88]
[1743408000594,3.0036,125.87,125.77,30.88]
[1743408000793,7.9469,125.85,125.77,30.88]
[1743408001093,30.88,125.86,125.77,30.88]
[1743408001292,38.8263,125.86,125.77,30.88]
[1743408001494,0.05682225,125.83,125.8,0.0503253]
[1743408001895,0.05682225,125.83,125.82,7.9484]
[1743408002096,0.05682225,125.83,125.8,0.0503253]
[1743408002296,0.05682225,125.83,125.81,7.9486]
[1743408004204,0.05682225,125.83,125.8,0.0503253]
[1743408005499,0.05682225,125.83,125.81,30.82]
[1743408006101,0.0017845,125.83,125.81,30.82]
[1743408006298,2.8078,125.92,125.82,7.9484]
[1743408006299,7.945,125.88,125.82,7.9484]
[1743408006498,3.0846,125.91,125.82,3.0263]
[1743408006802,7.9466,125.85,125.81,30.82]
[1743408007015,3.0846,125.91,125.81,30.82]
[1743408007498,0.05224303,125.87,125.85,0.05750434]
[1743408007704,0.05224303,125.87,125.86,30.92]
[1743408008501,5.8975,125.97,125.86,38.86]
[1743408008700,5.8975,125.97,125.86,33.8157]
[1743408009505,7.9414,125.94,125.86,33.8157]
[1743408009805,0.05901716,125.93,125.9,0.05863174]
[1743408010000,0.05901716,125.93,125.91,31.02]
[1743408010207,0.05901716,125.93,125.9,0.05863174]
[1743408010406,0.05901716,125.93,125.91,31.0]
[1743408011098,7.9421,125.92,125.91,31.0]
[1743408011305,0.05901716,125.93,125.91,31.0]
[1743408012207,7.9394,125.97,125.91,31.0]
[1743408012404,6.0575,126.0,125.91,33.7984]
[1743408012801,6.0575,126.0,125.83,286.06]
[1743408013006,37.1575,126.0,125.84,35.30035699]
[1743408013205,0.06017014,125.93,125.9,0.05739608]
[1743408013401,37.1575,126.0,125.9,31.12]
[1743408013605,0.05578204,125.93,125.9,31.17353838]
[1743408013807,37.1575,126.0,125.9,31.12]
[1743408014006,0.0591049,125.93,125.91,7.9423]
[1743408014307,0.0591049,125.93,125.91,10.79319055]
[1743408014308,0.05205855,125.93,125.91,10.79319055]
[1743408014810,15.8685,126.05,125.91,296.75089055]
[1743408015009,6.0333,126.05,125.91,288.81089055]
[1743408015210,6.0333,126.05,125.94,7.9404]
[1743408015402,6.0333,126.05,125.95,31.32]
[1743408015910,0.05287648,126.01,125.99,8.786e-05]
[1743408016099,31.43287648,126.01,125.99,8.786e-05]
[1743408016409,13.9704,126.0,125.99,8.786e-05]
[1743408018400,7.9371,126.0,125.99,8.786e-05]
[1743408019412,0.05287648,126.01,125.99,8.786e-05]
[1743408019807,7.9371,126.0,125.99,8.786e-05]
[1743408021414,0.05287648,126.01,125.99,8.786e-05]
[1743408021807,7.98967648,126.01,125.99,8.786e-05]
[1743408023112,0.05287648,126.01,125.99,8.786e-05]
[1743408023312,0.05287648,126.01,125.99,31.56008786]
[1743408024810,5.9725,126.1,125.99,31.56008786]
[1743408025010,5.9725,126.1,126.0,2.9356]
[1743408025316,7.9342,126.05,126.0,10.8724]
[1743408025520,5.9725,126.1,126.0,2.9356]
[1743408026020,0.05222246,126.06,126.04,0.05114998]
[1743408026411,7.9339,126.05,126.04,0.05114998]
[1743408027515,7.9339,126.05,126.04,4.998e-05]
[1743408028015,39.4139,126.05,126.04,4.998e-05]
[1743408028218,42.3699,126.05,126.04,4.998e-05]
[1743408032519,45.3121,126.05,126.04,4.998e-05]
[1743408033727,53.2521,126.05,126.04,4.998e-05]
[1743408036321,45.3121,126.05,126.04,4.998e-05]
[1743408037020,13.8321,126.05,126.04,4.998e-05]
[1743408037412,7.9339,126.05,126.04,4.998e-05]
[1743408038525,13.6155,126.05,126.04,4.998e-05]
[1743408042422,7.9373,126.0,125.98,31.52]
[1743408042919,14.28703457,126.02,125.98,31.52]
[1743408043618,7.9374,126.0,125.99,0.05783016]
[1743408045926,7.99743704,126.01,125.99,0.05783016]
[1743408046131,0.06063704,126.01,125.99,0.05783016]
[1743408046627,7.9371,126.0,125.99,0.05783016]
[1743408049630,7.99743704,126.01,125.99,0.05783016]
[1743408049834,0.06063704,126.01,125.99,0.05783016]
[1743408050729,7.9336,126.06,126.02,7.9358]
[1743408051034,14.28703457,126.08,126.02,7.9358]
[1743408051234,14.28703457,126.08,126.0,31.32]
[1743408051735,0.05765639,126.05,126.03,0.05696589]
[1743408053729,7.99165639,126.05,126.03,31.29696589]
[1743408053929,0.05765639,126.05,126.03,31.29696589]
[1743408055232,0.05765639,126.05,126.03,39.23186589]
[1743408055734,0.05765639,126.05,126.03,31.29696589]
[1743408055933,0.05765639,126.05,126.03,34.13686589]
[1743408056134,7.9324,126.08,126.03,34.13686589]
[1743408056335,14.28703457,126.11,126.03,48.42390046]
[1743408056537,14.28703457,126.11,126.05,7.9334]
[1743408056740,14.28703457,126.11,126.06,31.12]
[1743408057133,7.9317,126.09,126.06,31.12]
[1743408057333,7.9317,126.09,126.07,0.06030161]
[1743408057738,0.0588201,126.1,126.07,0.06030161]
[1743408058333,14.28703457,126.15,126.07,0.06030161]
[1743408058638,14.28703457,126.15,126.06,31.12]
[1743408058834,7.93,126.12,126.06,31.12]
[1743408059039,14.28703457,126.15,126.06,31.12]
[1743408059234,14.28703457,126.15,126.07,14.28703457]
[1743408059739,7.9305,126.11,126.1,0.05892045]
[1743408059934,7.9305,126.11,126.1,31.17892045]
[1743408061135,7.9333,126.06,126.05,14.28703457]
[1743408061334,7.9333,126.06,126.05,45.40703457]
[1743408061540,7.9333,126.06,126.05,53.34703457]
[1743408063550,7.9333,126.06,126.05,56.25923457]
[1743408064439,7.9333,126.06,126.05,34.0322]
[1743408064645,0.05536879,126.07,126.04,0.05398122]
[1743408064842,0.05536879,126.07,126.04,31.13398122]
[1743408065740,7.9339,126.05,126.04,31.13398122]
[1743408067445,7.9336,126.06,126.04,31.13398122]
[1743408067645,0.05536879,126.07,126.04,31.13398122]
[1743408067944,7.9339,126.05,126.04,31.13398122]
[1743408070146,0.05536879,126.07,126.04,31.13398122]
[1743408070842,7.9337,126.06,126.04,31.13398122]
[1743408071343,0.05536879,126.07,126.04,31.13398122]
[1743408071548,7.9339,126.05,126.04,31.13398122]
[1743408073254,7.9337,126.06,126.04,31.13398122]
[1743408073443,7.9337,126.06,126.04,39.06848122]
[1743408073644,0.05536879,126.07,126.05,14.28703457]
[1743408073842,61.14353457,126.15,126.06,3.0176]
[1743408074047,30.14353457,126.15,126.07,45.30703457]
[1743408074246,7.9318,126.09,126.07,53.23943457]
[1743408074947,0.0548858,126.09,126.08,7.932]
[1743408075143,0.0548858,126.09,126.07,45.36059195]
[1743408075451,7.9866858,126.09,126.07,45.36059195]
[1743408075755,0.0548858,126.09,126.07,45.36059195]
[1743408076653,0.0548858,126.09,126.07,31.07355738]
[1743408078150,7.9321,126.08,126.07,31.07355738]
[1743408079657,0.0548858,126.09,126.07,31.07355738]
[1743408079858,0.0548858,126.09,126.07,45.36059195]
[1743408080761,7.9321,126.08,126.07,45.36059195]
[1743408081257,7.9321,126.08,126.07,31.07355738]
[1743408084963,0.0548858,126.09,126.07,45.36059195]
[1743408085563,7.9321,126.08,126.07,45.36059195]
[1743408085763,0.0548858,126.09,126.07,45.36059195]
[1743408086259,7.9865858,126.09,126.07,45.36059195]
[1743408086663,0.0548858,126.09,126.07,31.43355738]
[1743408086864,7.9321,126.08,126.07,31.43355738]
[1743408089563,7.9865858,126.09,126.07,31.43355738]
[1743408089762,0.0548858,126.09,126.07,31.43355738]
[1743408089958,0.0548858,126.09,126.07,45.72059195]
[1743408090765,7.9321,126.08,126.07,45.72059195]
[1743408091462,7.9321,126.08,126.07,31.43355738]
[1743408093060,7.9865858,126.09,126.07,39.36625738]
[1743408093255,0.0548858,126.09,126.07,45.72059195]
[1743408093857,0.0548858,126.09,126.08,7.9321]
[1743408094060,0.0548858,126.09,126.07,45.72059195]
[1743408094562,0.0548858,126.09,126.08,7.9321]
[1743408096461,20.11013457,126.17,126.11,7.9301]
[1743408096760,20.11013457,126.17,126.12,31.34]
[1743408097063,5.8231,126.17,126.12,31.34]
[1743408097265,5.8231,126.17,126.13,14.28703457]
[1743408097865,7.928,126.15,126.14,0.05374766]
[1743408099968,0.05326812,126.16,126.14,0.05374766]
[1743408100264,0.05326812,126.16,126.15,45.52703457]
[1743408100868,5.9199,126.21,126.15,45.52703457]
[1743408101071,7.9249,126.2,126.17,22.21323457]
[1743408101272,7.9249,126.2,126.18,31.22]
[1743408101464,14.28703457,126.24,126.18,31.22]
[1743408101768,14.28703457,126.22,126.18,31.22]
[1743408102163,7.9245,126.2,126.19,1.236e-05]
[1743408102564,10.9477,126.2,126.19,1.236e-05]
[1743408102770,13.8517,126.2,126.19,1.236e-05]
[1743408106367,28.13873457,126.2,126.19,1.236e-05]
[1743408107764,13.8517,126.2,126.19,1.236e-05]
[1743408108178,7.9245,126.2,126.19,1.236e-05]
[1743408109676,0.05378747,126.21,126.19,1.236e-05]
[1743408110771,7.9245,126.2,126.19,1.236e-05]
[1743408111376,7.97788747,126.21,126.19,1.236e-05]
[1743408112180,0.05378747,126.21,126.19,14.28704693]
[1743408112377,0.05378747,126.21,126.19,22.21174693]
[1743408113085,7.97798747,126.21,126.19,22.21174693]
[1743408114381,7.9245,126.2,126.19,14.28704693]
[1743408114976,0.05378747,126.21,126.19,14.28704693]
[1743408115382,0.05378747,126.21,126.2,7.9245]
[1743408115584,5.8283,126.26,126.19,14.28704693]
[1743408115783,5.8283,126.26,126.21,14.28703457]
[1743408115979,5.8283,126.26,126.22,31.58]
[1743408116984,7.9226,126.23,126.22,31.58]
[1743408120089,0.05117173,126.25,126.22,31.58]
[1743408120790,14.3382063,126.25,126.21,0.05227474]
[1743408121084,14.3382063,126.25,126.14,360.95121073]
[1743408121085,0.05117173,126.25,126.2,31.58]
[1743408121283,5.8283,126.26,126.21,31.6]
[1743408121678,7.9218,126.25,126.21,31.6]
[1743408121984,14.28703457,126.3,126.22,7.9805836]
[1743408122184,2.8825,126.29,126.22,7.923]
[1743408122388,0.05961082,126.27,126.25,0.05589085]
[1743408122589,7.9233,126.22,126.21,31.6]
[1743408122883,14.28703457,126.28,126.21,31.58]
[1743408123693,0.05364623,126.26,126.23,0.05952416]
[1743408124889,7.922,126.24,126.23,0.05952416]
[1743408126383,7.922,126.24,126.23,2.416e-05]
[1743408130091,22.20903457,126.24,126.23,2.416e-05]
[1743408133398,7.927,126.17,126.14,299.38703457]
[1743408133594,14.28703457,126.22,126.15,31.6]
[1743408133796,9.11492903,126.2,126.16,9.11492903]
[1743408134298,9.11492903,126.18,126.14,325.79492903]
[1743408134494,9.11492903,126.16,126.12,96.99341195]
[1743408134702,0.06086585,126.17,126.15,4.971e-05]
[1743408135196,7.927,126.16,126.15,4.971e-05]
[1743408135999,22.1790967,126.16,126.15,4.971e-05]
[1743408136795,7.927,126.16,126.15,4.971e-05]
[1743408138499,22.1790967,126.16,126.15,4.971e-05]
[1743408138903,7.9308,126.1,126.09,31.66]
[1743408139297,2.8207,126.15,126.08,285.12]
[1743408139498,2.8207,126.15,126.09,31.64]
[1743408139805,2.8207,126.15,126.08,316.74]
[1743408139806,14.2520967,126.14,126.08,316.74]
[1743408139996,14.2520967,126.14,126.08,31.62]
[1743408140197,7.9302,126.11,126.1,0.05007354]
[1743408140595,7.9329,126.07,126.05,102.13057962]
[1743408140802,7.9329,126.07,126.06,31.62]
[1743408141196,7.9333,126.06,126.05,107.56509832]
[1743408141401,7.9333,126.06,126.05,19.6866154]
[1743408141793,31.62,126.12,126.05,19.6866154]
[1743408141794,0.0532836,126.07,126.05,19.6866154]
[1743408141999,45.8720967,126.12,126.05,51.3466154]
[1743408142300,45.8720967,126.12,126.05,51.40503504]
[1743408142498,7.9333,126.06,126.05,51.40503504]
[1743408143402,0.05773944,126.07,126.05,51.40503504]
[1743408143601,0.05773944,126.07,126.05,65.65713174]
[1743408144501,0.05773944,126.07,126.05,45.97051634]
[1743408144901,7.9298,126.12,126.06,14.2520967]
[1743408145102,7.9298,126.12,126.09,14.2520967]
[1743408145301,7.9298,126.12,126.1,31.62]
[1743408145503,7.9302,126.11,126.1,31.62]
[1743408145704,2.8207,126.15,126.1,31.62]
[1743408146104,7.98478401,126.14,126.11,7.9879699]
[1743408146599,0.05608401,126.14,126.11,14.3102666]
[1743408146804,2.9968,126.2,126.13,14.2520967]
[1743408147003,2.9968,126.2,126.15,14.2520967]
[1743408147202,3.0072,126.23,126.17,14.2520967]
[1743408147398,3.0072,126.23,126.18,31.72]
[1743408147603,7.9236,126.22,126.19,7.925]
[1743408147902,3.0072,126.23,126.18,31.72]
[1743408148102,0.05787218,126.22,126.19,0.05256389]
[1743408148302,0.05787218,126.22,126.19,14.30466059]
[1743408149101,0.05787218,126.22,126.19,0.05256389]
[1743408149400,7.9245,126.2,126.19,0.05256389]
[1743408149605,0.05787218,126.22,126.19,0.05256389]
[1743408150503,7.9245,126.2,126.19,0.05256389]
[1743408151005,17.29856888,126.22,126.15,31.86]
[1743408151207,31.84,126.2,126.12,46.0920967]
[1743408151398,46.0920967,126.2,126.12,46.0920967]
[1743408151598,46.0920967,126.2,126.12,31.84]
[1743408151805,14.2520967,126.16,126.08,14.2520967]
[1743408152106,0.05518931,126.13,126.11,0.05557726]
[1743408152703,7.9295,126.12,126.11,0.05557726]
[1743408153201,7.98438931,126.13,126.11,0.05557726]
[1743408153906,0.05518931,126.13,126.11,32.17557726]
[1743408154406,0.05518931,126.13,126.11,40.10537726]
[1743408154806,0.05518931,126.13,126.11,32.17557726]
[1743408155001,7.98418931,126.13,126.11,32.17557726]
[1743408155502,7.9295,126.12,126.11,0.05557726]
[1743408160911,54.2815967,126.12,126.11,7.726e-05]
[1743408161208,54.2815967,126.12,125.97,684.61956973]
[1743408161209,15.8608,126.11,125.97,684.61956973]
[1743408161410,14.2520967,126.08,125.98,314.18560504]
[1743408161613,38.2595,126.07,125.98,346.36560504]
[1743408161915,32.18,126.1,126.01,22.83595353]
[1743408162214,6.0795,126.11,126.02,32.2]
[1743408162408,0.05427723,126.07,126.04,0.05716004]
[1743408162614,0.05427723,126.07,126.05,40.1539]
[1743408162815,0.05427723,126.07,126.05,32.22]
[1743408165616,0.05427723,126.07,126.05,55.05595353]
[1743408166117,0.05427723,126.07,126.06,7.9333]
[1743408166817,7.9298,126.12,126.09,7.9313]
[1743408167013,32.28,126.16,126.09,40.2113]
[1743408167014,7.9292,126.13,126.09,40.2113]
[1743408167312,32.28,126.16,126.09,40.2113]
[1743408167513,7.9294,126.13,126.1,7.9306]
[1743408167717,28.59925353,126.18,126.09,32.28]
[1743408167718,60.83925353,126.18,126.09,32.28]
[1743408167919,0.05547409,126.13,126.1,0.05669943]
[1743408168218,0.05547409,126.13,126.09,32.28]
[1743408168419,0.05547409,126.13,126.1,0.0513877]
[1743408168720,7.9302,126.11,126.1,0.0513877]
[1743408169313,0.05547409,126.13,126.06,32.34]
[1743408169512,2.9437,126.12,126.04,288.4569]
[1743408169715,2.9437,126.12,126.04,285.38]
[1743408170016,25.77965353,126.12,126.04,285.38]
[1743408170416,7.9336,126.06,126.04,285.38]
[1743408170617,0.0586334,126.09,126.07,8.343e-05]
[1743408170822,22.83595353,126.08,126.0,253.11423933]
[1743408171118,55.19595353,126.08,126.0,253.11423933]
[1743408171414,55.19595353,126.08,126.0,35.3678]
[1743408171620,32.36,126.08,126.0,61.24965353]
[1743408171821,0.05707711,126.05,126.03,0.0537037]
[1743408172118,32.44,126.11,126.03,32.44]
[1743408172321,0.05359721,126.05,126.03,32.49758607]
[1743408172514,32.44,126.11,126.03,32.44]
[1743408172818,0.05868235,126.05,126.03,32.49890494]
[1743408173019,32.44,126.11,126.03,32.44]